[Event "Late-Titled-Tuesday-Blitz-June-04-2024"]
[Site "Chess.com"]
[Date "2024.06.04"]
[Round "9"]
[White "MaestroCheck"]
[Black "bubeliang"]
[Result "1/2-1/2"]
[WhiteElo "2645"]
[BlackElo "2847"]
[TimeControl "180+1"]
[EndTime "15:43:19 PDT"]
[Termination "Game drawn by repetition"]

1. e4 {[%clk 0:03:00.9]} 1... c6 {[%clk 0:02:58.3]} 2. d4 {[%clk 0:03:00.2]}
2... d5 {[%clk 0:02:59.2]} 3. Nd2 {[%clk 0:02:59.5]} 3... dxe4 {[%clk
0:02:58.9]} 4. Nxe4 {[%clk 0:03:00.4]} 4... Nf6 {[%clk 0:02:59.2]} 5. Nxf6+
{[%clk 0:03:00.6]} 5... exf6 {[%clk 0:03:00.1]} 6. c3 {[%clk 0:03:01.1]} 6...
Bd6 {[%clk 0:02:57.6]} 7. Bd3 {[%clk 0:03:01.6]} 7... O-O {[%clk 0:02:53.3]} 8.
Qc2 {[%clk 0:03:01.4]} 8... Re8+ {[%clk 0:02:53.2]} 9. Ne2 {[%clk 0:03:01.9]}
9... h5 {[%clk 0:02:52.5]} 10. O-O {[%clk 0:03:01.4]} 10... h4 {[%clk
0:02:50.5]} 11. h3 {[%clk 0:03:01.2]} 11... Nd7 {[%clk 0:02:49.9]} 12. Bd2
{[%clk 0:03:00.9]} 12... Nf8 {[%clk 0:02:49.5]} 13. Rae1 {[%clk 0:03:01.4]}
13... Be6 {[%clk 0:02:48.2]} 14. f4 {[%clk 0:03:00.8]} 14... Qc7 {[%clk
0:02:27.6]} 15. c4 {[%clk 0:02:55.7]} 15... c5 {[%clk 0:02:20.9]} 16. d5 {[%clk
0:02:54.6]} 16... Bd7 {[%clk 0:02:21.1]} 17. Qd1 {[%clk 0:02:44.9]} 17... f5
{[%clk 0:02:15.4]} 18. Nc3 {[%clk 0:02:30.4]} 18... g6 {[%clk 0:02:11.5]} 19.
Qf3 {[%clk 0:02:27.9]} 19... Nh7 {[%clk 0:02:07.4]} 20. Qf2 {[%clk 0:02:27.9]}
20... Qd8 {[%clk 0:02:05.9]} 21. Kh1 {[%clk 0:02:22.8]} 21... b6 {[%clk
0:01:53.7]} 22. Ne2 {[%clk 0:02:20.4]} 22... Bf8 {[%clk 0:01:50.3]} 23. Ng1
{[%clk 0:02:17.1]} 23... Bg7 {[%clk 0:01:34.8]} 24. Nf3 {[%clk 0:02:15.7]} 24...
Bxb2 {[%clk 0:01:29.4]} 25. Nxh4 {[%clk 0:02:13.6]} 25... Nf6 {[%clk 0:01:25.7]}
26. Nf3 {[%clk 0:02:01]} 26... Ne4 {[%clk 0:01:22]} 27. Bxe4 {[%clk 0:01:59.9]}
27... fxe4 {[%clk 0:01:22.9]} 28. Ne5 {[%clk 0:01:59.5]} 28... Bd4 {[%clk
0:01:08.6]} 29. Be3 {[%clk 0:01:54.8]} 29... Bc3 {[%clk 0:01:02]} 30. Rc1 {[%clk
0:01:46.5]} 30... Ba5 {[%clk 0:00:50.4]} 31. Bd2 {[%clk 0:01:25.3]} 31... Bxd2
{[%clk 0:00:44]} 32. Qxd2 {[%clk 0:01:26.2]} 32... Qe7 {[%clk 0:00:42.1]} 33.
Qe3 {[%clk 0:01:24.4]} 33... Kg7 {[%clk 0:00:35]} 34. Qxe4 {[%clk 0:01:21.5]}
34... Bf5 {[%clk 0:00:32.1]} 35. Qf3 {[%clk 0:01:20.7]} 35... f6 {[%clk
0:00:29.9]} 36. Nc6 {[%clk 0:01:15.3]} 36... Qe2 {[%clk 0:00:19.5]} 37. Qxe2
{[%clk 0:01:07.7]} 37... Rxe2 {[%clk 0:00:20.4]} 38. Rfe1 {[%clk 0:01:08]} 38...
Rxa2 {[%clk 0:00:17.3]} 39. Re7+ {[%clk 0:01:07.5]} 39... Kh6 {[%clk 0:00:17.9]}
40. d6 {[%clk 0:01:07.7]} 40... Rd2 {[%clk 0:00:17.5]} 41. g4 {[%clk 0:00:57]}
41... Rxd6 {[%clk 0:00:14]} 42. gxf5 {[%clk 0:00:54.7]} 42... Rxc6 {[%clk
0:00:13.1]} 43. Rg1 {[%clk 0:00:55.2]} 43... Rg8 {[%clk 0:00:11.6]} 44. Rxa7
{[%clk 0:00:54.9]} 44... Rd6 {[%clk 0:00:11.6]} 45. Rb7 {[%clk 0:00:52.6]} 45...
Rg7 {[%clk 0:00:04]} 46. Rxg7 {[%clk 0:00:51.4]} 46... Kxg7 {[%clk 0:00:04.9]}
47. Rxg6+ {[%clk 0:00:51.1]} 47... Kf7 {[%clk 0:00:04.9]} 48. Rh6 {[%clk
0:00:50.5]} 48... Rd4 {[%clk 0:00:04.2]} 49. Rh7+ {[%clk 0:00:50.9]} 49... Kg8
{[%clk 0:00:04.3]} 50. Rb7 {[%clk 0:00:51.1]} 50... Rxf4 {[%clk 0:00:03.5]} 51.
Rxb6 {[%clk 0:00:51.7]} 51... Rxf5 {[%clk 0:00:04]} 52. Kg2 {[%clk 0:00:51.9]}
52... Kf7 {[%clk 0:00:03.9]} 53. Kg3 {[%clk 0:00:52]} 53... Kg6 {[%clk
0:00:04.2]} 54. Rc6 {[%clk 0:00:52]} 54... Re5 {[%clk 0:00:04.1]} 55. Kf4 {[%clk
0:00:47.3]} 55... Rf5+ {[%clk 0:00:02.3]} 56. Kg4 {[%clk 0:00:47.2]} 56... Rg5+
{[%clk 0:00:02.5]} 57. Kf4 {[%clk 0:00:47.2]} 57... Rh5 {[%clk 0:00:02.5]} 58.
Kg4 {[%clk 0:00:47.1]} 58... Re5 {[%clk 0:00:03.1]} 59. Kf4 {[%clk 0:00:47.3]}
59... Rf5+ {[%clk 0:00:02.3]} 60. Kg4 {[%clk 0:00:47.5]} 60... Rg5+ {[%clk
0:00:02.8]} 61. Kf4 {[%clk 0:00:47.2]} 61... Rh5 {[%clk 0:00:01.5]} 62. Kg4
{[%clk 0:00:47.1]} 62... Rg5+ {[%clk 0:00:01.6]} 1/2-1/2

[Event "Late-Titled-Tuesday-Blitz-June-04-2024"]
[Site "Chess.com"]
[Date "2024.06.04"]
[Round "9"]
[White "mac0504"]
[Black "sergeikim"]
[Result "1-0"]
[WhiteElo "2769"]
[BlackElo "2618"]
[TimeControl "180+1"]
[EndTime "15:43:22 PDT"]
[Termination "mac0504 won by resignation"]

1. c4 {[%clk 0:02:58.7]} 1... Nf6 {[%clk 0:02:59.4]} 2. Nc3 {[%clk 0:02:59.6]}
2... g6 {[%clk 0:02:59.6]} 3. e4 {[%clk 0:02:59.9]} 3... d6 {[%clk 0:02:59.5]}
4. d4 {[%clk 0:03:00.5]} 4... Bg7 {[%clk 0:02:59.5]} 5. Be2 {[%clk 0:03:01.2]}
5... O-O {[%clk 0:02:59.4]} 6. Be3 {[%clk 0:03:02]} 6... e5 {[%clk 0:02:59.2]}
7. d5 {[%clk 0:03:02.6]} 7... a5 {[%clk 0:02:58.6]} 8. h4 {[%clk 0:03:03.2]}
8... Na6 {[%clk 0:02:57.5]} 9. h5 {[%clk 0:03:03.5]} 9... Nc5 {[%clk 0:02:57.2]}
10. Qc2 {[%clk 0:03:04.1]} 10... Bd7 {[%clk 0:02:54.9]} 11. h6 {[%clk
0:02:53.4]} 11... Bh8 {[%clk 0:02:54]} 12. Nh3 {[%clk 0:02:51.3]} 12... a4
{[%clk 0:02:53.5]} 13. Ng5 {[%clk 0:02:50.7]} 13... c6 {[%clk 0:02:49.9]} 14.
Rd1 {[%clk 0:02:38.6]} 14... cxd5 {[%clk 0:02:46.7]} 15. cxd5 {[%clk 0:02:37.9]}
15... Rc8 {[%clk 0:02:44.6]} 16. Qd2 {[%clk 0:02:31.4]} 16... Qa5 {[%clk
0:02:37]} 17. O-O {[%clk 0:02:05.2]} 17... a3 {[%clk 0:02:28.7]} 18. bxa3 {[%clk
0:01:15.6]} 18... Ng4 {[%clk 0:02:14.2]} 19. Bxg4 {[%clk 0:01:09.9]} 19... Bxg4
{[%clk 0:02:13.9]} 20. f3 {[%clk 0:01:09]} 20... Bd7 {[%clk 0:02:13.4]} 21. Rb1
{[%clk 0:01:04.3]} 21... Qxa3 {[%clk 0:02:10.2]} 22. Rfc1 {[%clk 0:00:58.5]}
22... Bf6 {[%clk 0:02:00.2]} 23. Rb6 {[%clk 0:00:47.3]} 23... Be7 {[%clk
0:01:55.9]} 24. Nb5 {[%clk 0:00:40.7]} 24... Bxb5 {[%clk 0:01:53.8]} 25. Rxb5
{[%clk 0:00:41.6]} 25... Nd3 {[%clk 0:00:53.6]} 26. Rxc8 {[%clk 0:00:36]} 26...
Rxc8 {[%clk 0:00:54.5]} 27. Rb3 {[%clk 0:00:34.8]} 27... Qc1+ {[%clk 0:00:51]}
28. Qxc1 {[%clk 0:00:31.4]} 28... Nxc1 {[%clk 0:00:51.9]} 29. Rxb7 {[%clk
0:00:30.6]} 29... Bxg5 {[%clk 0:00:47.9]} 30. Bxg5 {[%clk 0:00:31.5]} 30... Ne2+
{[%clk 0:00:47.1]} 31. Kf2 {[%clk 0:00:31.6]} 31... Nd4 {[%clk 0:00:46.4]} 32.
Bf6 {[%clk 0:00:28.5]} 32... Ra8 {[%clk 0:00:38.4]} 33. a4 {[%clk 0:00:27.4]}
33... Kf8 {[%clk 0:00:36.8]} 34. Be7+ {[%clk 0:00:17.5]} 34... Ke8 {[%clk
0:00:37]} 35. Bxd6 {[%clk 0:00:18.2]} 35... Rxa4 {[%clk 0:00:36.4]} 36. Bxe5
{[%clk 0:00:16.8]} 36... Ra2+ {[%clk 0:00:33.3]} 37. Kg3 {[%clk 0:00:11.4]}
37... Ne2+ {[%clk 0:00:31.9]} 38. Kh2 {[%clk 0:00:11.8]} 38... Nc1 {[%clk
0:00:29.1]} 39. d6 {[%clk 0:00:10.1]} 39... Rd2 {[%clk 0:00:23.4]} 40. Bf4
{[%clk 0:00:10.3]} 40... Rd1 {[%clk 0:00:22.9]} 41. d7+ {[%clk 0:00:09.4]} 41...
Ke7 {[%clk 0:00:22.1]} 42. Bg5+ {[%clk 0:00:05.4]} 42... f6 {[%clk 0:00:22.2]}
43. Bxc1 {[%clk 0:00:06.1]} 43... Rxc1 {[%clk 0:00:20.6]} 44. d8=Q+ {[%clk
0:00:06.8]} 44... Kxd8 {[%clk 0:00:19.5]} 45. Rxh7 {[%clk 0:00:07.7]} 45... Rc5
{[%clk 0:00:18.6]} 46. g4 {[%clk 0:00:07.1]} 46... g5 {[%clk 0:00:16.3]} 47. Rf7
{[%clk 0:00:05.7]} 47... Ke8 {[%clk 0:00:15.8]} 48. h7 {[%clk 0:00:06]} 48...
Kxf7 {[%clk 0:00:16.7]} 49. h8=Q {[%clk 0:00:06.4]} 49... Rc2+ {[%clk
0:00:16.8]} 50. Kg3 {[%clk 0:00:06.8]} 50... Rc8 {[%clk 0:00:17]} 51. Qxc8
{[%clk 0:00:06.6]} 1-0

[Event "Late-Titled-Tuesday-Blitz-June-04-2024"]
[Site "Chess.com"]
[Date "2024.06.04"]
[Round "9"]
[White "PNEPaul"]
[Black "maurovargas01"]
[Result "1-0"]
[WhiteElo "1931"]
[BlackElo "1895"]
[TimeControl "180+1"]
[EndTime "15:43:23 PDT"]
[Termination "PNEPaul won by resignation"]

1. e4 {[%clk 0:02:36.3]} 1... c5 {[%clk 0:02:54]} 2. d4 {[%clk 0:02:35.8]} 2...
cxd4 {[%clk 0:02:54]} 3. c3 {[%clk 0:02:36]} 3... dxc3 {[%clk 0:02:54]} 4. Nxc3
{[%clk 0:02:36.1]} 4... Nc6 {[%clk 0:02:54.6]} 5. Nf3 {[%clk 0:02:35.9]} 5... a6
{[%clk 0:02:54.7]} 6. Bc4 {[%clk 0:02:34.2]} 6... d6 {[%clk 0:02:51.2]} 7. O-O
{[%clk 0:02:32.9]} 7... g6 {[%clk 0:02:42.4]} 8. Bg5 {[%clk 0:02:29]} 8... Bg7
{[%clk 0:02:41.3]} 9. Qb3 {[%clk 0:02:25.3]} 9... Na5 {[%clk 0:02:22.3]} 10.
Bxf7+ {[%clk 0:02:24.5]} 10... Kf8 {[%clk 0:02:22]} 11. Qd5 {[%clk 0:02:24.3]}
11... Nf6 {[%clk 0:02:16.1]} 12. Bxf6 {[%clk 0:02:24.1]} 12... Bxf6 {[%clk
0:02:13.4]} 13. e5 {[%clk 0:02:24.2]} 13... Bg7 {[%clk 0:01:58.2]} 14. exd6
{[%clk 0:02:15.7]} 14... Qxd6 {[%clk 0:01:43.7]} 15. Qxa5 {[%clk 0:02:07.2]}
15... Kxf7 {[%clk 0:01:43.6]} 16. Ne4 {[%clk 0:02:05.8]} 16... Qc6 {[%clk
0:01:35.7]} 17. Nfg5+ {[%clk 0:01:50.8]} 17... Kf8 {[%clk 0:01:29.7]} 18. Qd8+
{[%clk 0:01:48]} 18... Qe8 {[%clk 0:01:23.1]} 19. Qc7 {[%clk 0:01:41.1]} 19...
h6 {[%clk 0:01:17.6]} 20. Qf4+ {[%clk 0:01:21.2]} 20... Kg8 {[%clk 0:01:10.7]}
21. Nf3 {[%clk 0:01:19.5]} 21... g5 {[%clk 0:01:04.2]} 22. Qg3 {[%clk
0:01:06.7]} 22... Bf5 {[%clk 0:01:03.3]} 23. Nc3 {[%clk 0:01:02.3]} 23... Rc8
{[%clk 0:00:44]} 24. Rac1 {[%clk 0:00:58.8]} 24... Kh7 {[%clk 0:00:42.5]} 25. h4
{[%clk 0:00:52.5]} 25... Qg6 {[%clk 0:00:41.2]} 26. Ne5 {[%clk 0:00:47.2]} 26...
Qd6 {[%clk 0:00:32.6]} 27. Nf7 {[%clk 0:00:41.7]} 27... Qf6 {[%clk 0:00:24.9]}
28. Nxh8 {[%clk 0:00:39.1]} 28... Bxh8 {[%clk 0:00:20.1]} 29. Nd5 {[%clk
0:00:34.6]} 29... Qf7 {[%clk 0:00:16.3]} 30. Rxc8 {[%clk 0:00:30.7]} 30... Qxd5
{[%clk 0:00:14.1]} 31. Rc7 {[%clk 0:00:26]} 31... Be5 {[%clk 0:00:11.5]} 32.
Rxe7+ {[%clk 0:00:25]} 32... Kg6 {[%clk 0:00:11.9]} 33. Qxe5 {[%clk 0:00:24.9]}
33... Qxe5 {[%clk 0:00:11]} 34. Rxe5 {[%clk 0:00:24.4]} 34... Kf6 {[%clk
0:00:11.9]} 35. Rc5 {[%clk 0:00:23.6]} 35... gxh4 {[%clk 0:00:11.2]} 36. Rc7
{[%clk 0:00:22.4]} 36... Be4 {[%clk 0:00:10.6]} 37. Re1 {[%clk 0:00:21.7]} 37...
Bc6 {[%clk 0:00:10.4]} 38. Rxc6+ {[%clk 0:00:21.4]} 38... bxc6 {[%clk
0:00:10.5]} 39. Rc1 {[%clk 0:00:21.4]} 39... Ke5 {[%clk 0:00:09.7]} 40. Rxc6
{[%clk 0:00:21.3]} 40... a5 {[%clk 0:00:10.6]} 41. Rxh6 {[%clk 0:00:20.8]} 41...
a4 {[%clk 0:00:08.8]} 42. Rxh4 {[%clk 0:00:20.6]} 42... a3 {[%clk 0:00:09.7]}
43. bxa3 {[%clk 0:00:20.3]} 43... Kf5 {[%clk 0:00:08.7]} 44. Rb4 {[%clk
0:00:20]} 44... Ke5 {[%clk 0:00:08.8]} 45. a4 {[%clk 0:00:20.4]} 45... Kd5
{[%clk 0:00:08.9]} 46. a5 {[%clk 0:00:20.8]} 46... Kc5 {[%clk 0:00:09.8]} 47.
Rb2 {[%clk 0:00:21]} 47... Kc4 {[%clk 0:00:08.4]} 48. a6 {[%clk 0:00:20.9]}
48... Kc3 {[%clk 0:00:09.3]} 49. Rb7 {[%clk 0:00:21]} 49... Kc4 {[%clk
0:00:09.3]} 50. a7 {[%clk 0:00:21.2]} 50... Kc5 {[%clk 0:00:10.2]} 51. a8=Q
{[%clk 0:00:21.3]} 51... Kc6 {[%clk 0:00:11.1]} 52. Qc8+ {[%clk 0:00:21.3]}
52... Kd6 {[%clk 0:00:10.6]} 53. Rd7+ {[%clk 0:00:21.3]} 1-0

[Event "Late-Titled-Tuesday-Blitz-June-04-2024"]
[Site "Chess.com"]
[Date "2024.06.04"]
[Round "9"]
[White "Kirill_Klukin"]
[Black "lachesisQ"]
[Result "0-1"]
[WhiteElo "2841"]
[BlackElo "3037"]
[TimeControl "180+1"]
[EndTime "15:43:26 PDT"]
[Termination "lachesisQ won on time"]

1. d4 {[%clk 0:03:00.9]} 1... Nf6 {[%clk 0:02:59.4]} 2. Nf3 {[%clk 0:02:59.9]}
2... g6 {[%clk 0:02:59.6]} 3. e3 {[%clk 0:03:00.1]} 3... Bg7 {[%clk 0:02:59.7]}
4. Be2 {[%clk 0:03:00.7]} 4... d5 {[%clk 0:02:57.7]} 5. O-O {[%clk 0:03:00.8]}
5... O-O {[%clk 0:02:57.7]} 6. b4 {[%clk 0:03:01.1]} 6... a5 {[%clk 0:02:56.6]}
7. b5 {[%clk 0:03:01.4]} 7... Ne4 {[%clk 0:02:56.5]} 8. Bb2 {[%clk 0:02:59.8]}
8... c5 {[%clk 0:02:56.7]} 9. bxc6 {[%clk 0:02:59.8]} 9... Nxc6 {[%clk
0:02:56.1]} 10. Nbd2 {[%clk 0:02:56.1]} 10... Bf5 {[%clk 0:02:54.6]} 11. c4
{[%clk 0:02:55.9]} 11... a4 {[%clk 0:02:52.2]} 12. Nxe4 {[%clk 0:02:48.2]} 12...
Bxe4 {[%clk 0:02:46.8]} 13. Nd2 {[%clk 0:02:48]} 13... Bf5 {[%clk 0:02:37.7]}
14. Ba3 {[%clk 0:02:33.2]} 14... Re8 {[%clk 0:02:24.9]} 15. Rc1 {[%clk
0:02:31.5]} 15... h5 {[%clk 0:01:41.8]} 16. cxd5 {[%clk 0:02:26.6]} 16... Qxd5
{[%clk 0:01:41.6]} 17. Nc4 {[%clk 0:02:27.4]} 17... Qd8 {[%clk 0:01:23.7]} 18.
Bf3 {[%clk 0:02:27]} 18... Ra6 {[%clk 0:01:14.9]} 19. Qe2 {[%clk 0:02:14.7]}
19... e5 {[%clk 0:01:04.9]} 20. Qd1 {[%clk 0:00:58.3]} 20... exd4 {[%clk
0:00:25.7]} 21. Nd6 {[%clk 0:00:58.3]} 21... dxe3 {[%clk 0:00:20.9]} 22. fxe3
{[%clk 0:00:43.7]} 22... Rxe3 {[%clk 0:00:20.4]} 23. Bc5 {[%clk 0:00:44.4]}
23... Re5 {[%clk 0:00:17.6]} 24. Nxb7 {[%clk 0:00:41.3]} 24... Qxd1 {[%clk
0:00:17.1]} 25. Rfxd1 {[%clk 0:00:42.2]} 25... Bg4 {[%clk 0:00:14.6]} 26. Bxg4
{[%clk 0:00:31.6]} 26... hxg4 {[%clk 0:00:15.5]} 27. Rc2 {[%clk 0:00:24.3]}
27... Rf5 {[%clk 0:00:14.9]} 28. Nd6 {[%clk 0:00:20]} 28... Rxc5 {[%clk
0:00:14.8]} 29. Rxc5 {[%clk 0:00:20.5]} 29... Bd4+ {[%clk 0:00:15.7]} 30. Rxd4
{[%clk 0:00:21]} 30... Nxd4 {[%clk 0:00:16.6]} 31. Rc8+ {[%clk 0:00:19.4]} 31...
Kg7 {[%clk 0:00:16.5]} 32. Ne8+ {[%clk 0:00:20]} 32... Kh6 {[%clk 0:00:17]} 33.
Rd8 {[%clk 0:00:13.6]} 33... Nf5 {[%clk 0:00:16.7]} 34. Nc7 {[%clk 0:00:08.3]}
34... Rc6 {[%clk 0:00:16.8]} 35. Nd5 {[%clk 0:00:07.1]} 35... Rc1+ {[%clk
0:00:17.4]} 36. Kf2 {[%clk 0:00:07.4]} 36... Rc2+ {[%clk 0:00:18.3]} 37. Kf1
{[%clk 0:00:06.7]} 37... Rxa2 {[%clk 0:00:19.2]} 38. Ra8 {[%clk 0:00:05.2]}
38... a3 {[%clk 0:00:19.2]} 39. Nf6 {[%clk 0:00:03.8]} 39... Ne3+ {[%clk
0:00:19.3]} 40. Ke1 {[%clk 0:00:03.1]} 40... Nxg2+ {[%clk 0:00:19.7]} 41. Kd1
{[%clk 0:00:03.8]} 41... Ne3+ {[%clk 0:00:20.6]} 42. Kc1 {[%clk 0:00:04.3]}
42... Rc2+ {[%clk 0:00:20.2]} 43. Kb1 {[%clk 0:00:04.9]} 43... Rb2+ {[%clk
0:00:21.1]} 44. Kc1 {[%clk 0:00:05]} 44... Rc2+ {[%clk 0:00:20.9]} 45. Kb1
{[%clk 0:00:05.1]} 45... Rf2 {[%clk 0:00:20]} 46. Ne4 {[%clk 0:00:03.9]} 46...
Rb2+ {[%clk 0:00:19.4]} 47. Kc1 {[%clk 0:00:04]} 47... Rb4 {[%clk 0:00:18.8]}
48. Nf2 {[%clk 0:00:02.8]} 48... Rb3 {[%clk 0:00:17.4]} 49. Ra4 {[%clk
0:00:01.5]} 49... f5 {[%clk 0:00:17.3]} 50. Ra6 {[%clk 0:00:01.6]} 50... Kg5
{[%clk 0:00:17.4]} 0-1

[Event "Late-Titled-Tuesday-Blitz-June-04-2024"]
[Site "Chess.com"]
[Date "2024.06.04"]
[Round "9"]
[White "ZverevLev"]
[Black "AlexeiShirov"]
[Result "0-1"]
[WhiteElo "2666"]
[BlackElo "2896"]
[TimeControl "180+1"]
[EndTime "15:43:31 PDT"]
[Termination "AlexeiShirov won on time"]

1. e4 {[%clk 0:03:00.9]} 1... e5 {[%clk 0:02:59.7]} 2. Nf3 {[%clk 0:03:00.5]}
2... Nc6 {[%clk 0:02:59.7]} 3. Bc4 {[%clk 0:02:59.8]} 3... Nf6 {[%clk
0:02:58.7]} 4. d3 {[%clk 0:02:59.1]} 4... Bc5 {[%clk 0:02:57.9]} 5. O-O {[%clk
0:02:58.4]} 5... O-O {[%clk 0:02:57.1]} 6. h3 {[%clk 0:02:58.1]} 6... h6 {[%clk
0:02:55]} 7. c3 {[%clk 0:02:57.7]} 7... d5 {[%clk 0:02:51.4]} 8. exd5 {[%clk
0:02:57.2]} 8... Nxd5 {[%clk 0:02:49.8]} 9. Re1 {[%clk 0:02:57.5]} 9... Re8
{[%clk 0:02:47.6]} 10. d4 {[%clk 0:02:56.3]} 10... Nb6 {[%clk 0:02:46.9]} 11.
Bxf7+ {[%clk 0:02:49.6]} 11... Kxf7 {[%clk 0:02:46.2]} 12. dxc5 {[%clk 0:02:50]}
12... Qxd1 {[%clk 0:02:46.1]} 13. Rxd1 {[%clk 0:02:50.9]} 13... Na4 {[%clk
0:02:45.9]} 14. Na3 {[%clk 0:02:38.1]} 14... Nxc5 {[%clk 0:02:10.2]} 15. Be3
{[%clk 0:02:36.2]} 15... Ne4 {[%clk 0:02:05.5]} 16. Nb5 {[%clk 0:02:33]} 16...
Re7 {[%clk 0:02:04.4]} 17. Nd2 {[%clk 0:02:06.1]} 17... Nf6 {[%clk 0:01:56.4]}
18. Bc5 {[%clk 0:02:03.9]} 18... Rd7 {[%clk 0:01:54.5]} 19. Nc4 {[%clk
0:01:40.7]} 19... Ne8 {[%clk 0:01:52.3]} 20. Rxd7+ {[%clk 0:01:11.2]} 20... Bxd7
{[%clk 0:01:51.6]} 21. Re1 {[%clk 0:01:12.1]} 21... b6 {[%clk 0:01:34]} 22. Be3
{[%clk 0:00:55.4]} 22... a6 {[%clk 0:01:32.4]} 23. Nba3 {[%clk 0:00:54.9]} 23...
Nf6 {[%clk 0:01:32.3]} 24. f4 {[%clk 0:00:40.4]} 24... Re8 {[%clk 0:01:10.4]}
25. fxe5 {[%clk 0:00:30.7]} 25... Nxe5 {[%clk 0:01:09.4]} 26. Bf2 {[%clk
0:00:23.1]} 26... Nd3 {[%clk 0:01:04]} 27. Rxe8 {[%clk 0:00:21.3]} 27... Kxe8
{[%clk 0:00:59]} 28. Bg3 {[%clk 0:00:20.4]} 28... Nd5 {[%clk 0:00:55.1]} 29. Nc2
{[%clk 0:00:17.4]} 29... Kd8 {[%clk 0:00:41.8]} 30. N4e3 {[%clk 0:00:14.7]}
30... Nxe3 {[%clk 0:00:40.7]} 31. Nxe3 {[%clk 0:00:15.6]} 31... Nxb2 {[%clk
0:00:40.8]} 32. Nd5 {[%clk 0:00:10.8]} 32... Be6 {[%clk 0:00:39.8]} 33. Nxc7
{[%clk 0:00:07.8]} 33... Bc4 {[%clk 0:00:38.9]} 34. Be5 {[%clk 0:00:04.4]} 34...
Na4 {[%clk 0:00:36.3]} 35. Kf2 {[%clk 0:00:02.7]} 35... Kd7 {[%clk 0:00:33.4]}
36. Na8 {[%clk 0:00:02.6]} 36... g6 {[%clk 0:00:28.6]} 37. Ke3 {[%clk
0:00:02.9]} 37... Bxa2 {[%clk 0:00:25.3]} 38. Kd4 {[%clk 0:00:02.1]} 38... Kc6
{[%clk 0:00:23.6]} 39. Nc7 {[%clk 0:00:01.8]} 39... a5 {[%clk 0:00:23.3]} 40. c4
{[%clk 0:00:01.6]} 40... Nc5 {[%clk 0:00:22.8]} 41. Nb5 {[%clk 0:00:01.1]} 41...
Bb1 {[%clk 0:00:20.7]} 42. Kc3 {[%clk 0:00:01.3]} 42... Be4 {[%clk 0:00:20.1]}
43. Nd4+ {[%clk 0:00:02.2]} 43... Kd7 {[%clk 0:00:19.5]} 44. g3 {[%clk
0:00:02.4]} 44... g5 {[%clk 0:00:18.9]} 45. Bg7 {[%clk 0:00:02.2]} 45... h5
{[%clk 0:00:18.8]} 46. g4 {[%clk 0:00:01.7]} 46... hxg4 {[%clk 0:00:17.9]} 47.
hxg4 {[%clk 0:00:02.6]} 47... Bg2 {[%clk 0:00:17.4]} 48. Bf6 {[%clk 0:00:02.2]}
48... Bh3 {[%clk 0:00:17.4]} 49. Kc2 {[%clk 0:00:01.4]} 49... Ne4 {[%clk
0:00:16.4]} 50. Be5 {[%clk 0:00:01.7]} 50... Bxg4 {[%clk 0:00:16.8]} 51. Nb3
{[%clk 0:00:01.2]} 51... Bf5 {[%clk 0:00:16]} 0-1

[Event "Late-Titled-Tuesday-Blitz-June-04-2024"]
[Site "Chess.com"]
[Date "2024.06.04"]
[Round "9"]
[White "ChessQueen"]
[Black "Likvidator228"]
[Result "1-0"]
[WhiteElo "2738"]
[BlackElo "2597"]
[TimeControl "180+1"]
[EndTime "15:43:31 PDT"]
[Termination "ChessQueen won by resignation"]

1. e4 {[%clk 0:03:00.9]} 1... c5 {[%clk 0:03:00.1]} 2. d4 {[%clk 0:03:00.8]}
2... cxd4 {[%clk 0:02:59.9]} 3. Qxd4 {[%clk 0:03:01.7]} 3... Nc6 {[%clk
0:02:59.4]} 4. Qd3 {[%clk 0:03:02.1]} 4... Nf6 {[%clk 0:02:58.6]} 5. Nc3 {[%clk
0:03:02.3]} 5... g6 {[%clk 0:02:58.8]} 6. Nf3 {[%clk 0:03:02.5]} 6... d6 {[%clk
0:02:57.3]} 7. Be2 {[%clk 0:03:02.8]} 7... Bg7 {[%clk 0:02:57.3]} 8. O-O {[%clk
0:03:03]} 8... O-O {[%clk 0:02:57.5]} 9. Nd5 {[%clk 0:03:03.3]} 9... Nxd5 {[%clk
0:02:44.3]} 10. exd5 {[%clk 0:03:03.3]} 10... Ne5 {[%clk 0:02:45]} 11. Nxe5
{[%clk 0:03:03.2]} 11... Bxe5 {[%clk 0:02:45.9]} 12. c3 {[%clk 0:03:03.2]} 12...
Bf5 {[%clk 0:02:38.6]} 13. Qb5 {[%clk 0:02:57.8]} 13... Qd7 {[%clk 0:02:35.4]}
14. Qb4 {[%clk 0:02:52.1]} 14... Qc7 {[%clk 0:02:24]} 15. Bh6 {[%clk 0:02:46.5]}
15... Bg7 {[%clk 0:02:20.4]} 16. Bxg7 {[%clk 0:02:42.7]} 16... Kxg7 {[%clk
0:02:21.3]} 17. Rfe1 {[%clk 0:02:38.4]} 17... Qb6 {[%clk 0:01:59.4]} 18. Qxb6
{[%clk 0:02:34.3]} 18... axb6 {[%clk 0:01:59.6]} 19. Bc4 {[%clk 0:02:34.5]}
19... Kf6 {[%clk 0:01:50.5]} 20. Rad1 {[%clk 0:02:29.6]} 20... Bd7 {[%clk
0:01:43.1]} 21. Rd4 {[%clk 0:02:24.4]} 21... Rfe8 {[%clk 0:01:42]} 22. Rf4+
{[%clk 0:02:21.3]} 22... Kg7 {[%clk 0:01:41.7]} 23. Rfe4 {[%clk 0:02:21.7]}
23... Kf6 {[%clk 0:01:41.4]} 24. Bb3 {[%clk 0:02:18.6]} 24... e5 {[%clk
0:01:27.7]} 25. f4 {[%clk 0:01:36.9]} 25... exf4 {[%clk 0:01:24.4]} 26. Rxf4+
{[%clk 0:01:36.2]} 26... Kg7 {[%clk 0:01:24.7]} 27. Rxe8 {[%clk 0:01:21.4]}
27... Rxe8 {[%clk 0:01:24.2]} 28. Kf2 {[%clk 0:01:22.1]} 28... f5 {[%clk
0:01:24.2]} 29. Rb4 {[%clk 0:01:21.2]} 29... b5 {[%clk 0:01:24.5]} 30. Bd1
{[%clk 0:01:18]} 30... Re5 {[%clk 0:01:21]} 31. Bf3 {[%clk 0:01:18.1]} 31... Kf6
{[%clk 0:01:14.7]} 32. a4 {[%clk 0:01:18]} 32... bxa4 {[%clk 0:01:12]} 33. Rxb7
{[%clk 0:01:18.6]} 33... Re7 {[%clk 0:01:08.8]} 34. Ra7 {[%clk 0:01:10.1]} 34...
g5 {[%clk 0:01:02.8]} 35. Bd1 {[%clk 0:01:07.9]} 35... Ke5 {[%clk 0:00:27.5]}
36. Bxa4 {[%clk 0:01:06.5]} 36... Kxd5 {[%clk 0:00:18.7]} 37. Rxd7 {[%clk
0:01:05]} 37... Re4 {[%clk 0:00:18.4]} 38. Bb3+ {[%clk 0:01:00.8]} 38... Kc6
{[%clk 0:00:18.9]} 39. Rxh7 {[%clk 0:00:59.5]} 39... Rf4+ {[%clk 0:00:19.4]} 40.
Kg1 {[%clk 0:00:53.3]} 40... Re4 {[%clk 0:00:18.8]} 41. Bc2 {[%clk 0:00:49.1]}
41... Re2 {[%clk 0:00:16.4]} 42. Bxf5 {[%clk 0:00:48.8]} 42... Rxb2 {[%clk
0:00:17.1]} 43. h4 {[%clk 0:00:47.6]} 43... gxh4 {[%clk 0:00:16.9]} 44. Rxh4
{[%clk 0:00:47.5]} 44... Rb3 {[%clk 0:00:17.5]} 45. Rc4+ {[%clk 0:00:45.1]}
45... Kd5 {[%clk 0:00:17.6]} 46. Rc8 {[%clk 0:00:45]} 46... Ke5 {[%clk
0:00:17.2]} 47. Bg6 {[%clk 0:00:41.5]} 47... d5 {[%clk 0:00:15.5]} 48. Kh2
{[%clk 0:00:40.1]} 48... Kf4 {[%clk 0:00:15.9]} 49. Bf7 {[%clk 0:00:36.7]} 49...
Ke5 {[%clk 0:00:16.1]} 50. Rc5 {[%clk 0:00:35.9]} 50... Rb2 {[%clk 0:00:14.9]}
51. Rxd5+ {[%clk 0:00:35.6]} 51... Kf6 {[%clk 0:00:14.8]} 52. Rd7 {[%clk
0:00:35.2]} 52... Kg5 {[%clk 0:00:14.1]} 53. c4 {[%clk 0:00:33.9]} 53... Kf4
{[%clk 0:00:14.5]} 54. c5 {[%clk 0:00:33.5]} 54... Ke3 {[%clk 0:00:13.8]} 55. c6
{[%clk 0:00:33.2]} 55... Kf2 {[%clk 0:00:11]} 56. Bd5 {[%clk 0:00:30.3]} 56...
Rb4 {[%clk 0:00:10.5]} 57. Rf7+ {[%clk 0:00:29.9]} 57... Ke3 {[%clk 0:00:09.7]}
58. c7 {[%clk 0:00:28]} 58... Rh4+ {[%clk 0:00:09.2]} 59. Kg3 {[%clk 0:00:26.7]}
59... Rh8 {[%clk 0:00:08.1]} 60. Re7+ {[%clk 0:00:26.4]} 1-0